Workbook

Sheet ניהול (hidden)
A1: סוג המסגרת | C1: פעולות נעילה/ פתיחה
A2: נא לבחור מתוך הרשימה | C2: כלים | D2: הסבר
A3: יש"א גן חנ"מ גילאי 3-6 | B3: 1 | D3: הכפתור נועל את הנתונים הנבחרים
A4: יש"א בה"ס חנ"מ גילאי 6-21 | D4: הקובץ נשלח עם נעילת נתוני התקן ונוסחאות
A5: מועדון חברתי גילאי 21+ | B5: 2 | D5: הכפתור פותח את כל הנתונים
D6: יש להפעיל אותו לאחר אישור בקשת הגוף
D7: לצורך נעילת שלב אישור בקשת הגוף
B8: 3 | D8: יש להפעיל את הכפתור אחרי פעולה מס' 2
D9: ואחרי זה כפתור מס' 1
B10: 4 | D10: הכפתור נדרש במקרים מיוחדים
D11: במידה ויש לעשות תיקונים אחרי שלב האישור
D12: או לצרכים טכניים
D13: להפעלתו יש לעשות פעולה מס' 2
D14: ואחרי תיקון נתוני האישור לבצע פעולות 3 ו- 1
B15: 5 | D15: סינון ציוד מוזמן בסעיף "סיכום מפורט" אינו מוגן
D16: מפני שהסינון לא עובד במצב נעול, לכן יש להיזהר
D17: מכול פעולה מעבר מהפעלת הסינון באמצאות הכפתורים

Sheet א. פתיח
B10: גרסה: 1.1.2023
B11: תקן ציוד במסגרות פנאי ו/או הארכת יום במסגרות חינוך
B12: ציוד כללי, טכנולוגיה מסייעת, מתקני חצר וחוגים.
B14: רקע כללי
B15: הסיוע ניתן לשיפוץ או ציוד. תקן זה עוסק בציוד.
B16: מענק מעלה | C16: עד 60,000 ₪, אחת ל 3 שנים מתום תשלום אחרון.
B17: מענק צמרת | C17: עד 100,000 ₪ ועד 50% מהעלות הכוללת, הנמוך מביניהם, אחת ל 5 שנים מתום תשלום.
B18: יש להיכנס לאתר קרן שלם, פיתוח פיזי מענקים ולפעול בהתאם להנחיות. מצב קישורים לנוחיותכם.
B19: יש להיכנס לאתר קרן שלם, פיתוח פיזי מענקים ולפעול בהתאם להנחיות, מצב קישורים לנוחיותכם.
B20: מטרת תקן ציוד
B21: לסייע לרשויות או גופים המפעילים מסגרות לבנות את רשימת הציוד בהתאם להיקף ולסוג פעילותם.
B22: התקן מהווה רשימת ציוד מומלצת אשר ניתן לבחור מתוכה את פרטי הציוד הדרושים.
B23: ניתן להשתמש בתקן בצורה מודולרית בהתאם למספר המשתתפים, גודל המקום והתכנים המופעלים בו.
B24: לא נדרש להציג שתי הצעות מחיר למעט בגיליון ציוד נוסף, עבור ציוד שאינו נמצא בתקן.
B26: הבהרות
B28: הסיוע בציוד למועדוניות/ הארכת יום יינתן בהתאם למספר המשתתפים.
B29: לתשומת ליבכם, הכמויות של חלק מהציוד נקבעות לפי מספר האנשים במסגרת ( לדוגמא: מספר הכיסאות והשולחנות).
B30: הכמויות של חלק אחר מהציוד הינן קבועות ואינן תלויות במספר האנשים ( לדוגמא: ציוד מטבח או מתקני חצר).
B31: עבור הריהוט למסגרות ניתן לקבל ייעוץ מקצועי ע"י מעצב פנים. ראה סעיף ציוד כללי.
B32: במידה וקיים צורך בציוד אשר אינו מופיע בתקן, ניתן לבקש בגיליון ח'- ציוד נוסף.
B33: הסכומים המופיעים בטבלאות כוללים מע"מ בשיעור 17%.
B34: גובה הסיוע כפוף להחלטות ומדיניות הנהלת הקרן המשתנות/מתעדכנות באתר הקרן.
B36: הנחיות למילוי הקובץ:
B37: שלב הגשת הבקשה:
B38: עליכם למלא גיליון ג' בטרם מילוי הגיליונות האחרים
B39: גיליונות ד' עד ח' עליכם למלא רק עמודות הצבועות בירוק
B40: אין לגעת בתאים האחרים- תאים אלו "נעולים"
B42: שלב הדיווח על ההוצאות:
B43: לאחר אישור הבקשה יוחזר הגיליון עם הפריטים המאושרים
B44: גיליונות ד' עד ח' עליכם למלא רק עמודות הצבועות בכתום
B45: אין לגעת בתאים האחרים- תאים אלו "נעולים"

Sheet ב. תוכן עניינים
B8: תקן ציוד במסגרות פנאי ו/או הארכת יום במסגרות חינוך
B9: ציוד כללי, טכנולוגיה מסייעת, מתקני חצר וחוגים
B11: תוכן עניינים
B13: לשונית בקובץ | C13: תוכן הלשונית
B14: א. | C14: פתיח
B15: ב. | C15: תוכן עניינים
B16: ג. | C16: שאלון למילוי מגיש הבקשה
B17: ד. | C17: ציוד כללי
B18: ה. | C18: טכנולוגיה מסייעת
B19: ו. | C19: מתקני חצר לבוגרים בלבד
B20: ז. | C20: חוגים
B21: ח. | C21: ציוד נוסף
B22: ט. | C22: סיכום
B23: י. | C23: סיכום מפורט (לשימוש משרדי)

Sheet ג. שאלון למילוי מגיש הבקשה
B8: תקן ציוד במסגרות פנאי ו/או הארכת יום במסגרות חינוך
B9: ציוד כללי, טכנולוגיה מסייעת, מתקני חצר, וחוגים
B11: שאלון למגיש הבקשה
B13: הערות והסברים למילוי הבקשה
B14: יש למלא את השאלון לעיל לפני מעבר לכתב הכמויות
B15: הגוף המבקש מתבקש למלא פרטים בתאים המסומנים בצבע ירוק בלבד. אין למלא תאים אחרים.
B16: כל מחירי התקן כוללים מע"מ בשיעור של 17%.
B17: קרן שלם מיועדת לאנשים עם מש"ה. במסגרת הנותנת מענה רב נכותי, ההתיחסות הינה בהתאם למספר מקבלי השרות המוכרים עם מש"ה.
C21: תאריך הגשת הבקשה
C23: שם המסגרת
C25: סוג המסגרת | E25: נא לבחור מתוך הרשימה
C27: שם הרשות
C29: שם הארגון המפעיל
C31: כתובת המסגרת
C33: שם ושם משפחה איש קשר
C35: תפקיד איש קשר
C37: נייד איש קשר
C39: מייל איש קשר
C41: מספר האנשים שעבורם מיועד הפרויקט
C43: כמה מתוכם מוכרים עם מש"ה (מוגבלות שיכלית התפתחותית)

Sheet ד. ציוד כללי
B1: ='ב. תוכן עניינים'!C17 -> ציוד כללי | H1: שלב הגשת בקשת הגוף: | L1: שלב הדיווח לתשלום לאחר ביצוע:
B2: שם המסגרת | E2: ='ג. שאלון למילוי מגיש הבקשה'!E23 -> 00:00:00 | H2: עליכם למלא גיליון ג' טרם מילוי הגיליונות האחרים | L2: לאחר אישור הבקשה יוחזר הגיליון עם הפריטים המאושרים
B3: סוג המסגרת | E3: ='ג. שאלון למילוי מגיש הבקשה'!E25 -> נא לבחור מתוך הרשימה | H3: גיליונות ד' עד ח' -יש למלא רק עמודות הצבועות בירוק | L3: גיליונות ד' עד ח' יש למלא רק עמודות הצבועות בכתום/ורוד
B4: מספר האנשים שעבורם מיועד הפרויקט | E4: ='ג. שאלון למילוי מגיש הבקשה'!$E$41 -> 0 | H4: אין לסמן בתאים האחרים- תאים אלו יהיו נעולים | L4: אין לסמן בתאים האחרים- תאים אלו יהיו נעולים
B5: תקן | H5: בקשת הגוף | L5: דיווח לתשלום לאחר ביצוע
B6: סוג הריהוט / ציוד | C6: תיאור | D6: כמות תקן למסגרת | E6: מחיר ליחידה | F6: תקציב מומלץ לפי תקן | H6: כמות מבוקשת | I6: תקציב מבוקש לקבוצה | J6: הערות הגוף | L6: הפריט שנרכש | M6: מס' חשבונית מס | N6: תאריך חשבונית מס | O6: סכום כולל מע"מ
B7: ציוד וריהוט כללי | C7: לוח כתיבה מחיק | D7: 1 | E7: 200 | F7: =E7*D7 -> 200 | I7: =E7*H7 -> 0
C8: ארון תצוגה | D8: 1 | E8: 1800 | F8: =E8*D8 -> 1800 | I8: =E8*H8 -> 0
C9: שולחן פעילות מתקפל | D9: =ROUNDUP($E$4/5,0) -> 0 | E9: 1400 | F9: 0 | I9: 0
C10: כורסה/ פוף | D10: =ROUNDUP($E$4/5,0) -> 0 | E10: 800 | F10: 0 | I10: 0
C11: כיסא פעילות | D11: =E4 -> 0 | E11: 350 | F11: 0 | I11: 0
C12: שולחנות | D12: =ROUNDUP($E$4/4,0) -> 0 | E12: 600 | F12: =E12*D12 -> 0 | I12: 0
C13: ארון אחסון | D13: =ROUNDDOWN($E$4/10,0) -> 0 | E13: 2300 | F13: 0 | I13: 0
C14: וילונות חסיני אש (הכמות נקובה במ"ר) | D14: =IF($E$4<21,10,IF($E$4<41,20,IF($E$4<61,30,40))) -> 10 | E14: 222 | F14: 2220 | I14: 0
C15: אביזרי עיצוב (תקציב כולל) | D15: 1 | E15: 1800 | F15: 1800 | I15: 0
C16: מזגנים כולל התקנה | D16: =IF($E$4<21,3,IF($E$4<41,4,IF($E$4<61,5,6))) -> 3 | E16: 7500 | F16: 22500 | I16: =E16*H16 -> 0
C17: מידוף (תקציב כולל) | D17: 1 | E17: 1000 | F17: 1000 | I17: =E17*H17 -> 0
B18: סה"כ ציוד וריהוט כללי | F18: =SUM(F7:F17) -> 29520 | I18: =SUM(I7:I17) -> 0 | J18: =B18 -> סה"כ ציוד וריהוט כללי | L18: =J18 -> סה"כ ציוד וריהוט כללי | O18: =SUM(O7:O17) -> 0
B19: ציוד מטבח וחדר אוכל - בסיסי | C19: מיקרוגל + גריל | D19: 1 | E19: 1300 | F19: =E19*D19 -> 1300 | I19: =E19*H19 -> 0
C20: =IF(E4<=40,"מקרר 600 ליטר","מקרר עד 700 ליטר") -> מקרר 600 ליטר | D20: 1 | E20: 12000 | F20: =E20*D20 -> 12000 | I20: 0
C21: מתקן למים חמים/ קרים | D21: 1 | E21: 850 | F21: 850 | I21: 0
C22: מדיח כלים | D22: 1 | E22: 2500 | F22: 2500 | I22: 0
C23: מערבל מזון | D23: 1 | E23: 800 | F23: 800 | I23: 0
C24: מעבד מזון | D24: 1 | E24: 2500 | F24: 2500 | I24: 0
C25: תנור אפיה+ כיריים חשמלי | D25: 1 | E25: 2600 | F25: 2600 | I25: 0
C26: כלי מטבח- תקציב כללי | D26: 1 | E26: 1000 | F26: 1000 | I26: 0
B27: סה"כ ציוד מטבח וחדר אוכל - בסיסי | F27: =SUM(F19:F26) -> 23550 | I27: =SUM(I19:I26) -> 0 | J27: =B27 -> סה"כ ציוד מטבח וחדר אוכל - בסיסי | L27: =J27 -> סה"כ ציוד מטבח וחדר אוכל - בסיסי | O27: =SUM(O19:O26) -> 0
B28: ציוד לצוות המסגרת | C28: כספת (מתאימה לאחסון וטעינת טאבלטים) | D28: 1 | E28: 4000 | F28: =E28*D28 -> 4000 | I28: 0
C29: מחשב נייח כולל מערכת הפעלה, אופיס, מסך ומקלדת | D29: 1 | E29: 3500 | F29: =E29*D29 -> 3500 | I29: 0
C30: מחשב נייד כולל מערכת הפעלה, אופיס, מסך ומקלדת | D30: 1 | E30: 3600 | F30: 3600 | I30: 0
C31: מדפסת משולבת | D31: 1 | E31: 850 | F31: 850 | I31: 0
C32: ארון אחסון | D32: =IF($E$4<21,1,IF($E$4<41,2,IF($E$4<61,3,4))) -> 1 | E32: 1400 | F32: 1400 | I32: 0
C33: שולחן מחשב | D33: 2 | E33: 820 | F33: 1640 | I33: 0
C34: מגרסת נייר | D34: 1 | E34: 1100 | F34: 1100 | I34: 0
C35: מחשב טאבלט | D35: 2 | E35: 1620 | F35: 3240 | I35: 0
C36: כסא מחשב | D36: 2 | E36: 420 | F36: 840 | I36: 0
B37: סה"כ מיחשוב (כולל מע"מ) | F37: =SUM(F28:F36) -> 20170 | I37: =SUM(I28:I36) -> 0 | J37: =B37 -> סה"כ מיחשוב (כולל מע"מ) | L37: =B37 -> סה"כ מיחשוב (כולל מע"מ) | O37: =SUM(O28:O36) -> 0
B38: ציוד פנאי בידור | C38: טלויזיה 55 אינץ' + מסך הגנה | D38: =IF($E$4<21,1,IF($E$4<41,2,IF($E$4<61,3,4))) -> 1 | E38: 4000 | F38: =E38*D38 -> 4000 | I38: 0
C39: מתקן תליה לטלוויזיה | D39: =D38 -> 1 | E39: 230 | F39: =E39*D39 -> 230 | I39: 0
C40: ברקו | D40: 1 | E40: 2800 | F40: 2800 | I40: 0
C41: מצלמה דיגיטלית | D41: 1 | E41: 900 | F41: 900 | I41: 0
C42: משחקי חברה (תקציב כולל) | D42: 1 | E42: 2400 | F42: 2400 | I42: 0
C43: קונסולת משחקים | D43: 1 | E43: 1550 | F43: 1550 | I43: 0
C44: מערכת סטריאו | D44: 1 | E44: 800 | F44: 800 | I44: 0
B45: סה"כ ציוד פנאי בידור (כולל מע"מ) | F45: =SUM(F38:F44) -> 12680 | I45: =SUM(I38:I44) -> 0 | J45: =B45 -> סה"כ ציוד פנאי בידור (כולל מע"מ) | L45: =B45 -> סה"כ ציוד פנאי בידור (כולל מע"מ) | O45: =SUM(O38:O44) -> 0
B46: ריהוט גינה | C46: סט ריהוט לגינה הכולל שולחן ושישה כסאות | D46: =IF($E$4<21,1,IF($E$4<41,2,IF($E$4<61,3,4))) -> 1 | E46: 1800 | F46: =E46*D46 -> 1800 | I46: 0
C47: סוכך | D47: =IF($E$4<21,1,IF($E$4<41,2,IF($E$4<61,3,4))) -> 1 | E47: 1000 | F47: =E47*D47 -> 1000 | I47: 0
C48: ספסל גינה | D48: =IF($E$4<21,1,IF($E$4<41,2,IF($E$4<61,3,4))) -> 1 | E48: 700 | F48: 700 | I48: 0
C49: נדנדה לחצר | D49: =IF($E$4<21,1,IF($E$4<41,2,IF($E$4<61,3,4))) -> 1 | E49: 1400 | F49: 1400 | I49: 0
C50: מחסן גינה | D50: 1 | E50: =IF($E$4<21,2000,IF($E$4<41,3000,IF($E$4<61,4000,5000))) -> 2000 | F50: 2000 | I50: 0
C51: פח זבל גינה | D51: 2 | E51: 360 | F51: 720 | I51: 0
B52: סה"כ ריהוט גינה (כולל מע"מ) | F52: =SUM(F46:F51) -> 7620 | I52: =SUM(I46:I51) -> 0 | J52: =B52 -> סה"כ ריהוט גינה (כולל מע"מ) | L52: =B52 -> סה"כ ריהוט גינה (כולל מע"מ) | O52: =SUM(O46:O51) -> 0
B53: ציוד בטיחות | C53: מטף כיבוי אש 6 ק"ג | D53: =IF($E$4<21,1,IF($E$4<41,2,IF($E$4<61,3,4))) -> 1 | E53: 320 | F53: =E53*D53 -> 320 | I53: 0
C54: תיק עזרה ראשונה | D54: =IF($E$4<21,1,IF($E$4<41,2,IF($E$4<61,3,4))) -> 1 | E54: 340 | F54: =E54*D54 -> 340 | I54: 0
C55: מערכת מצלמות אבטחה | D55: 1 | E55: =IF($E$4<21,10000,IF($E$4<41,15000,IF($E$4<61,20000,25000))) -> 10000 | F55: 10000 | I55: 0
C56: תאורת חירום | D56: =IF($E$4<21,1,IF($E$4<41,2,IF($E$4<61,3,4))) -> 1 | E56: 160 | F56: 160 | I56: 0
B57: סה"כ ציוד בטיחות (כולל מע"מ) | F57: =SUM(F53:F56) -> 10820 | I57: =SUM(I53:I56) -> 0 | J57: =B57 -> סה"כ ציוד בטיחות (כולל מע"מ) | L57: =B57 -> סה"כ ציוד בטיחות (כולל מע"מ) | O57: =SUM(O53:O56) -> 0
B58: תוספות | C58: עיצוב פנים | D58: 1 | E58: 10000 | F58: =E58*D58 -> 10000 | I58: 0
B59: סה"כ ציוד כללי (כולל מע"מ) | F59: =F18+F27+F37+F45+F52+F57+F58 -> 114360 | I59: =I18+I27+I37+I45+I52+I57+I58 -> 0 | J59: =B59 -> סה"כ ציוד כללי (כולל מע"מ) | L59: =J59 -> סה"כ ציוד כללי (כולל מע"מ) | O59: =O18+O27+O37+O45+O52+O57+O58 -> 0

Sheet ה. טכנולוגיה מסייעת
B1: ='ב. תוכן עניינים'!C18 -> טכנולוגיה מסייעת | H1: שלב הגשת בקשת הגוף: | L1: שלב הדיווח לתשלום לאחר ביצוע:
B2: שם המסגרת | E2: ='ג. שאלון למילוי מגיש הבקשה'!E23 -> 00:00:00 | H2: יש למלא גיליון ג' טרם מילוי הגיליונות האחרים | L2: לאחר אישור הבקשה יוחזר הגיליון עם הפריטים המאושרים
B3: סוג המסגרת | E3: ='ג. שאלון למילוי מגיש הבקשה'!E25 -> נא לבחור מתוך הרשימה | H3: גיליונות ד' עד ח' -יש למלא רק עמודות הצבועות בירוק | L3: גיליונות ד' עד ח' יש למלא רק עמודות הצבועות בכתום/ורוד
B4: מספר האנשים שעבורם מיועד הפרויקט | E4: ='ג. שאלון למילוי מגיש הבקשה'!$E$41 -> 0 | H4: אין לגעת בתאים האחרים- תאים אלו יהיו נעולים | L4: אין לגעת בתאים האחרים- תאים אלו יהיו נעולים
B5: תקן | H5: בקשת הגוף | L5: דיווח לתשלום
B6: סוג מסגרת פעילות | C6: תיאור | D6: כמות תקן למסגרת | E6: מחיר ליחידה | F6: תקציב מומלץ לפי תקן | H6: כמות מבוקשת | I6: תקציב מבוקש לקבוצה | J6: הערות הגוף | L6: הפריט שנרכש | M6: מס' חשבונית מס | N6: תאריך חשבונית מס | O6: סכום כולל מע"מ
B7: אוכלוסיה עם מוגבלות מוטורית | C7: שולחנות חשמליים מתכווננים למחשב | D7: 1 | E7: 5700 | F7: =E7*D7 -> 5700 | I7: =E7*H7 -> 0
C8: מקלדת ארגונומית | D8: 1 | E8: 1000 | F8: =E8*D8 -> 1000 | I8: =E8*H8 -> 0
C9: עכבר ארגונומי | D9: 1 | E9: 850 | F9: 850 | I9: 0
C10: כסא שירותים מתכוונן | D10: 1 | E10: 2200 | F10: 2200 | I10: 0
B11: סה"כ טכנולוגיה מסייעת (כולל מע"מ) | F11: =SUM(F7:F10) -> 9750 | I11: =SUM(I7:I10) -> 0 | J11: =B11 -> סה"כ טכנולוגיה מסייעת (כולל מע"מ) | L11: =J11 -> סה"כ טכנולוגיה מסייעת (כולל מע"מ) | O11: =SUM(O7:O10) -> 0

Sheet ו. מתקני חצר לבוגרים
B1: ='ב. תוכן עניינים'!C19 -> מתקני חצר לבוגרים בלבד | I1: שלב הגשת בקשת הגוף: | M1: שלב הדיווח לתשלום לאחר ביצוע:
B2: =' ד. ציוד כללי'!B2 -> שם המסגרת | D2: =' ד. ציוד כללי'!$E2 -> 00:00:00 | I2: יש למלא גיליון ג' בטרם מילוי הגיליונות האחרים. | M2: לאחר אישור הבקשה יוחזר הגיליון עם הפריטים המאושרים
B3: =' ד. ציוד כללי'!B3 -> סוג המסגרת | D3: =' ד. ציוד כללי'!$E3 -> נא לבחור מתוך הרשימה | I3: גיליונות ד' עד ח' -יש למלא רק עמודות הצבועות בירוק | M3: גיליונות ד' עד ח', יש למלא רק עמודות הצבועות בכתום/ורוד
B4: =' ד. ציוד כללי'!B4 -> מספר האנשים שעבורם מיועד הפרויקט | D4: =' ד. ציוד כללי'!$E4 -> 0 | I4: אין לסמן בתאים האחרים- תאים אלו יהיו נעולים | M4: אין לסמן בתאים האחרים- תאים אלו יהיו נעולים
D5: תקן | I5: בקשת הגוף | M5: דיווח לתשלום
B6: מתקן | C6: תיאור | E6: כמות תקן למסגרת | F6: מחיר ליחידה | G6: תקציב מומלץ לפי תקן | I6: כמות מבוקשת | J6: תקציב מבוקש לקבוצה | K6: הערות הגוף | M6: הפריט שנרכש | N6: מס' חשבונית מס | O6: תאריך חשבונית מס | P6: סכום כולל מע"מ
B7: מתקני חצר | I7: =B7 -> מתקני חצר | M7: =I7 -> מתקני חצר
B8: לחיצת חזה משיכה עליונה | C8: מתקן זוגי דחיקת חזה ומשיכה עליונה זוגי שתי מנחי פעילות אפשריות מנח יד אופקי ואנכי אימון שרירי חזה כלל השרירים כולל מדרכי רגל לקיבוע הגפיים | E8: 1 | F8: 15000 | G8: =E8*F8 -> 15000 | J8: =F8*I8 -> 0
B9: מתקן דחיקת כתפיים למשתמש | C9: מתקן דחיקת כתפיים לאימון שרירי הכתפים והיד הקדמית בלדחיקה מעלה לכיוון הכתף כולל ידיות לקימה וישיבה והנגשה לאוכלוסיות מיוחדות כולל מדרכי רגל לקיבוע הגפיים | E9: 1 | F9: 8500 | G9: =E9*F9 -> 8500 | J9: =F9*I9 -> 0
B10: מתקן פרפר חזה | C10: מתקן פרפר סגירה לאימון שרירי החזה ,בתוספת זוג ידיות אחיזה של מנחי פעילות של סגירה צרה וסגירה רחבה כולל משענות יד ומדרך רגל לקיבוע הגפיים | E10: 1 | F10: 10500 | G10: 10500 | J10: =F10*I10 -> 0
B11: מתקן פרפר הפוך | C11: מתקן פרפר פתיחה לאימון שרירי החזה, בתוספת ידיות אחיזה כולל משענות יד ומדרך רגל לקיבוע הגפיים | E11: 1 | F11: 10500 | G11: 10500 | J11: =F11*I11 -> 0
B12: מתקן מקבילי כנף לזוג משתמשים | C12: מקבילי כנף בשני גבהים ברוחב אופטימאלי לאימון יד אחורית מונגש לאוכלוסיות גבוהות ונמוכות | E12: 1 | F12: 6000 | G12: 6000 | J12: 0
B13: מתקן דחיקת רגליים לזוג משתמשים | C13: מתקן דחיקת ארבע ראשים ושרירי התאומים בישיבה – כולל מנגנון הבטחה ומעצור למניעת היפוך זרוע ומפתח קיצוני | E13: 1 | F13: 11000 | G13: 11000 | J13: 0
B14: מתקן סקי | C14: מתקן סקי לאימון אירובי פעילות ידיים רגליים בתנועה קדימה ואחורה כולל מעצור למניעת מפתח קיצוני | E14: 1 | F14: 7000 | G14: 7000 | J14: 0
B15: מתקן הליכה באוויר לזוג משתמשים | C15: מתקן הליכה באוויר לזוג לאימון אירובי אימון ופיתוח מיומניות הליכה ,הגמשת המפשעה תנועת רגליים קדימה ואחורה כולל מעצור למניעת מפתח קיצוני, עד 70 מעלות | E15: 1 | F15: 11000 | G15: 11000 | J15: 0
B16: מתקן חתירה בכורסא | C16: מתקן אירובי לפלג גוף עליון לאימון הגב והזרועות לאימון אירובי ,תנועת ידיות אחיזה קדימה ואחורה כולל מעצור למניעת מפתח קיצוני, עד 70 מעלות | E16: 1 | F16: 7000 | G16: 7000 | J16: 0
B17: מתקן מאמן אגן, שרירי בטן, ישבן וירכיים בתנועת מטוטלת | C17: התקן לארבעה משתמשים כולל תחנות לכיפוף ברכיים ותנועת אגן, חיזוק מותניים בטן תחתונה והצרת היקפי מותן חיזוק ואימון ישבן יריכיים כולל מעצור למניעת מפתח קיצוני, עד 70 מעלות | E17: 1 | F17: 9500 | G17: 9500 | J17: 0
B18: מתקן אופני ידיים רגליים | C18: מתקן לאימון קואורדינציה ותיאום יד ורגל, ביצוע תנועות סיבוב אופני ידיים לחיזוק רצועות הכתפיים יחד עם ביצוע ודיווש רגליים לחיזוק רגליים, ירך וישבן כולל מנגנון התנגדות אופטימאלית נגיש לכלל האוכלוסיות | E18: 1 | F18: 7000 | G18: 7000 | J18: 0
B19: מתקן אימון פולי תחתון בתמיכת חזה | C19: מתקן פעילות ליד קדמית בצורת פעילות של משיכה תחתונה בתמיכת חזה, פעילות בישיבה זקופה 3 מנחי פעילות אפשריות מנח יד אופקי ואנכי אימון שרירי היד הקדמית ושרירי שכמות / גב כולל מדרכי רגל לקיבוע הגפיים | E19: 1 | F19: 9500 | G19: 9500 | J19: 0
B20: מתקן אופני ספיננג | C20: מתקן לאימון קואורדינציה ותיאום יד ורגל, ביצוע תנועות סיבוב אופני ידיים לחיזוק רצועות הכתפיים יחד עם ביצוע ודיווש רגליים לחיזוק רגליים, ירך וישבן כולל מנגנון התנגדות אופטימאלית. נגיש לכלל האוכלוסיות | E20: 1 | F20: 6500 | G20: 6500 | J20: 0
B21: מתקן דחיקת רגליים ארבע | C21: מתקן דחיקה אימון ארבע ראשי ושרירי התאומים בישיבה – כולל מנגנון הבטחה ומעצור למניעת היפוך זרוע ומפתח קיצוני | E21: 1 | F21: 15000 | G21: 15000 | J21: 0
B22: מתקן מתח –מקבילים וכורסת בטן | C22: מתקן לאימון פונקציונאלי אימון כושר חופשי מודולארי מעוגן באמצעות חובקים . ניתן לקבלו במספר צורות וגבהים בהתאם לגרישות לקוח וצורת האימון המבוקשת | E22: 1 | F22: 14500 | G22: 14500 | J22: 0
B23: סה"כ מתקני חצר (כולל מע"מ) | G23: =SUM(G8:G22) -> 148500 | J23: =SUM(J8:J22) -> 0 | K23: =B23 -> סה"כ מתקני חצר (כולל מע"מ) | M23: =K23 -> סה"כ מתקני חצר (כולל מע"מ) | P23: =SUM(P8:P22) -> 0
B24: ציוד ואביזרים | I24: =B24 -> ציוד ואביזרים | M24: =B24 -> ציוד ואביזרים
B25: ילדים /בוגרים | C25: נדנדה קן לציפור | E25: 1 | F25: 11800 | G25: =E25*F25 -> 11800 | J25: =F25*I25 -> 0
C26: מתקן נדנדות כפול | E26: 1 | F26: 6500 | G26: 6500 | J26: 0
B27: ילדים | C27: מתקן משולב | E27: 1 | F27: 32000 | G27: 32000 | J27: 0
C28: מתקן קפיץ | E28: 1 | F28: 7600 | G28: 7600 | J28: 0
B29: נוער/בוגרים | C29: דחיקת רגלים | E29: 1 | F29: 6000 | G29: 6000 | J29: 0
C30: חתירה | E30: 1 | F30: 6100 | G30: 6100 | J30: 0
C31: אופנים עם מושב | E31: 1 | F31: 4500 | G31: 4500 | J31: 0
C32: דחיקת ידים | E32: 1 | F32: 8500 | G32: 8500 | J32: 0
C33: נדנדת מושב | E33: 1 | F33: 6500 | G33: 6500 | J33: 0
B34: משחקים ואביזרים | C34: שולחן פינג פונג | E34: 1 | F34: 1800 | G34: 1800 | J34: 0
C35: הוקי | E35: 1 | F35: 2950 | G35: 2950 | J35: 0
C36: כדורגל שולחן | E36: 1 | F36: 4690 | G36: 4690 | J36: 0
C37: משטח גומי עלות למ"ר 1 | E37: 80 | F37: 220 | G37: 17600 | J37: 0
B38: סה"כ ציוד ואביזרים (כולל מע"מ) | G38: =SUM(G25:G37) -> 116540 | J38: =SUM(J25:J37) -> 0 | K38: =B38 -> סה"כ ציוד ואביזרים (כולל מע"מ) | M38: =K38 -> סה"כ ציוד ואביזרים (כולל מע"מ) | P38: =SUM(P25:P37) -> 0
B39: סה"כ מתקני חצר לבוגרים (כולל מע"מ) | G39: =G23+G38 -> 265040 | J39: =J23+J38 -> 0 | K39: =B39 -> סה"כ מתקני חצר לבוגרים (כולל מע"מ) | M39: =K39 -> סה"כ מתקני חצר לבוגרים (כולל מע"מ) | P39: =P23+P38 -> 0
B41: הערות:
B42: מותנה בביצוע תשתיות, הצללה וריצוף גומי עח הגוף הפונה
B43: האישור מותנה בהצגת תכנית העמדת המתקנים
B44: המתקנים מחויבים בתו תקן
B45: הסעיפים הנ"ל מציגים מתקנים לדוגמה שיכולים להשתנות מפרויקט לפרויקט בהתאם למאפייני הגוף המבקש

Sheet ז. חוגים
B1: ='ב. תוכן עניינים'!C20 -> חוגים | H1: שלב הגשת בקשת הגוף: | L1: שלב הדיווח לתשלום לאחר ביצוע:
B2: =' ד. ציוד כללי'!B2 -> שם המסגרת | E2: =' ד. ציוד כללי'!E2 -> 00:00:00 | H2: יש למלא גיליון ג' בטרם מילוי הגיליונות האחרים. | L2: לאחר אישור הבקשה יוחזר הגיליון עם הפריטים המאושרים
B3: =' ד. ציוד כללי'!B3 -> סוג המסגרת | E3: =' ד. ציוד כללי'!E3 -> נא לבחור מתוך הרשימה | H3: גיליונות ד' עד ח' -יש למלא רק עמודות הצבועות בירוק | L3: גיליונות ד' עד ח' יש למלא רק עמודות הצבועות בכתום/ורוד
B4: =' ד. ציוד כללי'!B4 -> מספר האנשים שעבורם מיועד הפרויקט | E4: =' ד. ציוד כללי'!E4 -> 0 | H4: אין לגעת בתאים האחרים- תאים אלו יהיו נעולים | L4: אין לגעת בתאים האחרים- תאים אלו יהיו נעולים
B5: תקן | H5: בקשת הגוף | L5: דיווח לתשלום
B6: פריטים | C6: תיאור | D6: כמות תקן למסגרת | E6: מחיר ליחידה | F6: תקציב מומלץ לפי תקן | H6: כמות מבוקשת | I6: תקציב מבוקש לקבוצה | J6: הערות הגוף | L6: הפריט שנרכש | M6: מס' חשבונית מס | N6: תאריך חשבונית מס | O6: סכום כולל מע"מ
B7: חוג מחשבים | H7: =B7 -> חוג מחשבים | L7: =B7 -> חוג מחשבים
B8: (מותנה בקיומו של חדר ייעודי) | C8: מחשב נייח כולל מקלדת ועכבר | D8: =IF($E$4<21,4,IF($E$4<41,6,IF($E$4<61,8,8))) -> 4 | E8: 3500 | F8: =D8*E8 -> 14000 | I8: =E8*H8 -> 0
C9: שולחן מחשב | D9: =D8 -> 4 | E9: 820 | F9: =D9*E9 -> 3280 | I9: =E9*H9 -> 0
C10: כסא | D10: =D8 -> 4 | E10: 350 | F10: 1400 | I10: 0
B11: סה"כ חוג מחשבים (כולל מע"מ) | F11: =SUM(F8:F10) -> 18680 | I11: =SUM(I8:I10) -> 0 | J11: =B11 -> סה"כ חוג מחשבים (כולל מע"מ) | L11: =J11 -> סה"כ חוג מחשבים (כולל מע"מ) | O11: =SUM(O8:O10) -> 0
B12: חוגים נוספים | C12: קרמיקה כולל תנור וציוד נילווה (רכישת התנור מותנת בקיום חדר נפרד לתנור 5 מ"ר- 7 מ"ר תנור קרמיקה תוצרת חו"ל דורש תו תקן מת"י) | D12: 1 | E12: 19200 | F12: 19200 | I12: 0
C13: מוזיקה | D13: 1 | E13: 12000 | F13: 12000 | I13: 0
C14: בישול | D14: 1 | E14: 5000 | F14: 5000 | I14: 0
C15: ציוד לפעילות גופנית קלה | D15: 1 | E15: 5000 | F15: 5000 | I15: 0
C16: חוג עיצוב וייצור מוצרים: מדפסת תלת מימד (נדרש מדריך בעל ידע וניסיון בהפעלת המדפסת) | D16: 1 | E16: 42000 | F16: 42000 | I16: 0
C17: חוגים נוספים (יש לפרט את החוג ואת הציוד המבוקש עבורו ) | D17: 1 | E17: 7000 | F17: 7000 | I17: 0
B18: סה"כ חוגים נוספים (כולל מע"מ) | F18: =SUM(F12:F17) -> 90200 | I18: =SUM(I12:I17) -> 0 | J18: =B18 -> סה"כ חוגים נוספים (כולל מע"מ) | L18: =J18 -> סה"כ חוגים נוספים (כולל מע"מ) | O18: =SUM(O12:O17) -> 0
B19: סה"כ חוגים(כולל מע"מ) | F19: =F11+F18 -> 108880 | I19: =I11+I18 -> 0 | J19: =B19 -> סה"כ חוגים(כולל מע"מ) | L19: =J19 -> סה"כ חוגים(כולל מע"מ) | O19: =O11+O18 -> 0
B21: הערות:
B22: יש לצרף תוכנית פעילות שבועית
B23: על הגוף המבקש להוכיח שעומדים לרשותו משאבים וכ"א הנדרש להפעלת הפעילות המבוקשת
B24: לא יינתן סיוע לרכישת ציוד מתכלה

Sheet ח. ציוד נוסף
B1: ='ב. תוכן עניינים'!C21 -> ציוד נוסף | K1: שלב הגשת בקשת הגוף: | O1: שלב הדיווח לתשלום לאחר ביצוע:
B2: ניתן להכניס בטבלה זאת ציוד שאינו מופיע בתקן. יש להציג 2 הצעות מחיר ולציין בטורים K-L את ההצעה המועדפת. | K2: יש למלא גיליון ג' בטרם מילוי הגיליונות האחרים. | O2: לאחר אישור הבקשה יוחזר הגיליון עם הפריטים המאושרים
B3: =' ד. ציוד כללי'!B2 -> שם המסגרת | E3: =' ד. ציוד כללי'!E2 -> 00:00:00 | G3: נקלט אוטומטית מהשאלון למילוי מגיש הבקשה | K3: גיליונות ד' עד ח' -עליכם למלא רק עמודות הצבועות בירוק | O3: גיליונות ד' עד ח', יש למלא רק עמודות הצבועות בכתום/ורוד
B4: =' ד. ציוד כללי'!B3 -> סוג המסגרת | E4: =' ד. ציוד כללי'!E3 -> נא לבחור מתוך הרשימה | K4: אין לגעת בתאים האחרים- תאים אלו יהיו נעולים | O4: אין לגעת בתאים האחרים- תאים אלו יהיו נעולים
B5: =' ד. ציוד כללי'!B4 -> מספר האנשים שעבורם מיועד הפרויקט | C5: =IF('ג. שאלון למילוי מגיש הבקשה'!$E$27="","נא למלא שאלון למילוי מגיש הבקשה",'ג. שאלון למילוי מגיש הבקשה'!$E$27) -> נא למלא שאלון למילוי מגיש הבקשה | E5: ='ג. שאלון למילוי מגיש הבקשה'!E41 -> 0
B6: ציוד נוסף | E6: הצעה ראשונה | H6: הצעה שניה | K6: הצעה מועדפת | O6: דיווח לתשלום
B7: תאור הציוד | C7: יעוד הציוד | D7: כמות מבוקשת | E7: הספק 1 | F7: מחיר ליחידה | G7: סכום | H7: שם הספק 2 | I7: מחיר ליחידה | J7: סכום | K7: הספק המועדף | L7: מחיר ליחידה | M7: סכום | O7: הפריט שנרכש | P7: מס' חשבונית מס | Q7: תאריך חשבונית מס | R7: סכום כולל מעמ
G8: =D8*F8 -> 0 | J8: =$D8*I8 -> 0 | M8: =D8*L8 -> 0
G9: 0 | J9: =$D9*I9 -> 0 | M9: 0
G10: 0 | J10: 0 | M10: 0
G11: 0 | J11: 0 | M11: 0
G12: 0 | J12: 0 | M12: 0
G13: 0 | J13: 0 | M13: 0
G14: 0 | J14: 0 | M14: 0
G15: 0 | J15: 0 | M15: 0
G16: 0 | J16: 0 | M16: 0
G17: 0 | J17: 0 | M17: 0
G18: 0 | J18: 0 | M18: 0
G19: 0 | J19: 0 | M19: =D19*L19 -> 0
G20: 0 | J20: 0 | M20: 0
G21: 0 | J21: 0 | M21: 0
G22: 0 | J22: 0 | M22: 0
G23: 0 | J23: 0 | M23: 0
G24: 0 | J24: 0 | M24: 0
G25: 0 | J25: 0 | M25: 0
G26: 0 | J26: 0 | M26: 0
G27: 0 | J27: 0 | M27: 0
G28: 0 | J28: 0 | M28: 0
B29: סה"כ ציוד נוסף(כולל מע"מ) | G29: =SUM(G8:G28) -> 0 | J29: =SUM(J8:J28) -> 0 | M29: =SUM(M8:M28) -> 0 | O29: =B29 -> סה"כ ציוד נוסף(כולל מע"מ) | R29: =SUM(R8:R28) -> 0

Sheet ט. סיכום
B8: תקן ציוד במסגרות פנאי ו/או הארכת יום במסגרות חינוך
B9: ציוד כללי, טכנולוגיה מסייעת, מתקני חצר, וחוגים
B11: דוח ביצוע מסכם
B13: הנחיות לקבלת תשלום :
B14: יש למלא את ההוצאות בפועל בכל אחד מהגיליונות הרלבנטיים הקודמים. הסכומים יעודכנו אוטומטית בגיליון זה.
B15: יש לשלוח את הקובץ הזה במלואו באימייל המצויין מטה.
B16: יש להדפיס עמוד זה ולהחתים כנדרש
B17: בנוסף יש לצרף :
B18: צילומי חשבוניות מס / קבלות או כרטסת חתומה ע"י רו"ח של ארגון מפעיל/ גזבר הרשות
B19: את הדיווחים לתשלום ואת הקובץ במלואו יש לשלוח במייל : limor@kshalem.org.il
B20: באחריות השולח לוודא כי החמרים הגיעו ליעדם
B22: =' ד. ציוד כללי'!B2 -> שם המסגרת | C22: =' ד. ציוד כללי'!E2 -> 00:00:00
B23: =' ד. ציוד כללי'!B3 -> סוג המסגרת | C23: =' ד. ציוד כללי'!E3 -> נא לבחור מתוך הרשימה
B24: =' ד. ציוד כללי'!B4 -> מספר האנשים שעבורם מיועד הפרויקט | C24: =' ד. ציוד כללי'!E4 -> 0
B26: ציוד על פי נושאים | C26: סכום מאושר | D26: סכום שבוצע בפועל
B27: =' ד. ציוד כללי'!B1 -> ציוד כללי | C27: =' ד. ציוד כללי'!I59 -> 0 | D27: =' ד. ציוד כללי'!O59 -> 0
B28: ='ה. טכנולוגיה מסייעת'!B1 -> טכנולוגיה מסייעת | C28: ='ה. טכנולוגיה מסייעת'!I11 -> 0 | D28: ='ה. טכנולוגיה מסייעת'!O11 -> 0
B29: ='ו. מתקני חצר לבוגרים '!B1 -> מתקני חצר לבוגרים בלבד | C29: ='ו. מתקני חצר לבוגרים '!J39 -> 0 | D29: ='ו. מתקני חצר לבוגרים '!P39 -> 0
B30: ='ז. חוגים'!B1 -> חוגים | C30: ='ז. חוגים'!I19 -> 0 | D30: ='ז. חוגים'!O19 -> 0
B31: ='ח. ציוד נוסף '!B1 -> ציוד נוסף | C31: ='ח. ציוד נוסף '!M29 -> 0 | D31: ='ח. ציוד נוסף '!R29 -> 0
B32: סה"כ בקשה כולל מע"מ | C32: =SUM(C27:C31) -> 0 | D32: =SUM(D27:D31) -> 0
B34: מספר פרוייקט קרן שלם
B36: חתימה וחותמת גזבר/רו"ח
B38: תאריך

Sheet י. סיכום מפורט (לשימוש משרדי)
A1: ='ב. תוכן עניינים'!C23 -> סיכום מפורט (לשימוש משרדי)
A2: מספר מק"ט | B2: ='ט. סיכום'!C34 -> 0
A3: =' ד. ציוד כללי'!B2 -> שם המסגרת | B3: =' ד. ציוד כללי'!E2 -> 00:00:00
A4: =' ד. ציוד כללי'!B3 -> סוג המסגרת | B4: =' ד. ציוד כללי'!E3 -> נא לבחור מתוך הרשימה
A5: =' ד. ציוד כללי'!B4 -> מספר האנשים שעבורם מיועד הפרויקט | B5: =' ד. ציוד כללי'!E4 -> 0
B6: בקשה / אישור | E6: דיווח לתשלום
A7: =' ד. ציוד כללי'!C6 -> תיאור | B7: =' ד. ציוד כללי'!H6 -> כמות מבוקשת | C7: =' ד. ציוד כללי'!I6 -> תקציב מבוקש לקבוצה | E7: =' ד. ציוד כללי'!L6 -> הפריט שנרכש | F7: =' ד. ציוד כללי'!M6 -> מס' חשבונית מס | G7: =' ד. ציוד כללי'!N6 -> תאריך חשבונית מס | H7: =' ד. ציוד כללי'!O6 -> סכום כולל מע"מ
A8: ='ב. תוכן עניינים'!C17 -> ציוד כללי | E8: =A8 -> ציוד כללי
A9: =' ד. ציוד כללי'!C7 -> לוח כתיבה מחיק | B9: =' ד. ציוד כללי'!H7 -> 0 | C9: =' ד. ציוד כללי'!I7 -> 0 | E9: =' ד. ציוד כללי'!L7 -> 0 | F9: =' ד. ציוד כללי'!M7 -> 0 | G9: =IF(F9=0,"",' ד. ציוד כללי'!N7) ->  | H9: =' ד. ציוד כללי'!O7 -> 0
A10: =' ד. ציוד כללי'!C8 -> ארון תצוגה | B10: =' ד. ציוד כללי'!H8 -> 0 | C10: =' ד. ציוד כללי'!I8 -> 0 | E10: =' ד. ציוד כללי'!L8 -> 0 | F10: =' ד. ציוד כללי'!M8 -> 0 | G10: =IF(F10=0,"",' ד. ציוד כללי'!N8) ->  | H10: =' ד. ציוד כללי'!O8 -> 0
A11: =' ד. ציוד כללי'!C9 -> שולחן פעילות מתקפל | B11: =' ד. ציוד כללי'!H9 -> 0 | C11: =' ד. ציוד כללי'!I9 -> 0 | E11: =' ד. ציוד כללי'!L9 -> 0 | F11: =' ד. ציוד כללי'!M9 -> 0 | G11: =IF(F11=0,"",' ד. ציוד כללי'!N9) ->  | H11: =' ד. ציוד כללי'!O9 -> 0
A12: =' ד. ציוד כללי'!C10 -> כורסה/ פוף | B12: =' ד. ציוד כללי'!H10 -> 0 | C12: =' ד. ציוד כללי'!I10 -> 0 | E12: =' ד. ציוד כללי'!L10 -> 0 | F12: =' ד. ציוד כללי'!M10 -> 0 | G12: =IF(F12=0,"",' ד. ציוד כללי'!N10) ->  | H12: =' ד. ציוד כללי'!O10 -> 0
A13: =' ד. ציוד כללי'!C11 -> כיסא פעילות | B13: =' ד. ציוד כללי'!H11 -> 0 | C13: =' ד. ציוד כללי'!I11 -> 0 | E13: =' ד. ציוד כללי'!L11 -> 0 | F13: =' ד. ציוד כללי'!M11 -> 0 | G13: =IF(F13=0,"",' ד. ציוד כללי'!N11) ->  | H13: =' ד. ציוד כללי'!O11 -> 0
A14: =' ד. ציוד כללי'!C12 -> שולחנות | B14: =' ד. ציוד כללי'!H12 -> 0 | C14: =' ד. ציוד כללי'!I12 -> 0 | E14: =' ד. ציוד כללי'!L12 -> 0 | F14: =' ד. ציוד כללי'!M12 -> 0 | G14: =IF(F14=0,"",' ד. ציוד כללי'!N12) ->  | H14: =' ד. ציוד כללי'!O12 -> 0
A15: =' ד. ציוד כללי'!C13 -> ארון אחסון | B15: =' ד. ציוד כללי'!H13 -> 0 | C15: =' ד. ציוד כללי'!I13 -> 0 | E15: =' ד. ציוד כללי'!L13 -> 0 | F15: =' ד. ציוד כללי'!M13 -> 0 | G15: =IF(F15=0,"",' ד. ציוד כללי'!N13) ->  | H15: =' ד. ציוד כללי'!O13 -> 0
A16: =' ד. ציוד כללי'!C14 -> וילונות חסיני אש (הכמות נקובה במ"ר) | B16: =' ד. ציוד כללי'!H14 -> 0 | C16: =' ד. ציוד כללי'!I14 -> 0 | E16: =' ד. ציוד כללי'!L14 -> 0 | F16: =' ד. ציוד כללי'!M14 -> 0 | G16: =IF(F16=0,"",' ד. ציוד כללי'!N14) ->  | H16: =' ד. ציוד כללי'!O14 -> 0
A17: =' ד. ציוד כללי'!C15 -> אביזרי עיצוב (תקציב כולל) | B17: =' ד. ציוד כללי'!H15 -> 0 | C17: =' ד. ציוד כללי'!I15 -> 0 | E17: =' ד. ציוד כללי'!L15 -> 0 | F17: =' ד. ציוד כללי'!M15 -> 0 | G17: =IF(F17=0,"",' ד. ציוד כללי'!N15) ->  | H17: =' ד. ציוד כללי'!O15 -> 0
A18: =' ד. ציוד כללי'!C16 -> מזגנים כולל התקנה | B18: =' ד. ציוד כללי'!H16 -> 0 | C18: =' ד. ציוד כללי'!I16 -> 0 | E18: =' ד. ציוד כללי'!L16 -> 0 | F18: =' ד. ציוד כללי'!M16 -> 0 | G18: =IF(F18=0,"",' ד. ציוד כללי'!N16) ->  | H18: =' ד. ציוד כללי'!O16 -> 0
A19: =' ד. ציוד כללי'!C17 -> מידוף (תקציב כולל) | B19: =' ד. ציוד כללי'!H17 -> 0 | C19: =' ד. ציוד כללי'!I17 -> 0 | E19: =' ד. ציוד כללי'!L17 -> 0 | F19: =' ד. ציוד כללי'!M17 -> 0 | G19: =IF(F19=0,"",' ד. ציוד כללי'!N17) ->  | H19: =' ד. ציוד כללי'!O17 -> 0
A20: =' ד. ציוד כללי'!C19 -> מיקרוגל + גריל | B20: =' ד. ציוד כללי'!H19 -> 0 | C20: =' ד. ציוד כללי'!I19 -> 0 | E20: =' ד. ציוד כללי'!L19 -> 0 | F20: =' ד. ציוד כללי'!M19 -> 0 | G20: =IF(F20=0,"",' ד. ציוד כללי'!N19) ->  | H20: =' ד. ציוד כללי'!O19 -> 0
A21: =' ד. ציוד כללי'!C20 -> מקרר 600 ליטר | B21: =' ד. ציוד כללי'!H20 -> 0 | C21: =' ד. ציוד כללי'!I20 -> 0 | E21: =' ד. ציוד כללי'!L20 -> 0 | F21: =' ד. ציוד כללי'!M20 -> 0 | G21: =IF(F21=0,"",' ד. ציוד כללי'!N20) ->  | H21: =' ד. ציוד כללי'!O20 -> 0
A22: =' ד. ציוד כללי'!C21 -> מתקן למים חמים/ קרים | B22: =' ד. ציוד כללי'!H21 -> 0 | C22: =' ד. ציוד כללי'!I21 -> 0 | E22: =' ד. ציוד כללי'!L21 -> 0 | F22: =' ד. ציוד כללי'!M21 -> 0 | G22: =IF(F22=0,"",' ד. ציוד כללי'!N21) ->  | H22: =' ד. ציוד כללי'!O21 -> 0
A23: =' ד. ציוד כללי'!C22 -> מדיח כלים | B23: =' ד. ציוד כללי'!H22 -> 0 | C23: =' ד. ציוד כללי'!I22 -> 0 | E23: =' ד. ציוד כללי'!L22 -> 0 | F23: =' ד. ציוד כללי'!M22 -> 0 | G23: =IF(F23=0,"",' ד. ציוד כללי'!N22) ->  | H23: =' ד. ציוד כללי'!O22 -> 0
A24: =' ד. ציוד כללי'!C23 -> מערבל מזון | B24: =' ד. ציוד כללי'!H23 -> 0 | C24: =' ד. ציוד כללי'!I23 -> 0 | E24: =' ד. ציוד כללי'!L23 -> 0 | F24: =' ד. ציוד כללי'!M23 -> 0 | G24: =IF(F24=0,"",' ד. ציוד כללי'!N23) ->  | H24: =' ד. ציוד כללי'!O23 -> 0
A25: =' ד. ציוד כללי'!C24 -> מעבד מזון | B25: =' ד. ציוד כללי'!H24 -> 0 | C25: =' ד. ציוד כללי'!I24 -> 0 | E25: =' ד. ציוד כללי'!L24 -> 0 | F25: =' ד. ציוד כללי'!M24 -> 0 | G25: =IF(F25=0,"",' ד. ציוד כללי'!N24) ->  | H25: =' ד. ציוד כללי'!O24 -> 0
A26: =' ד. ציוד כללי'!C25 -> תנור אפיה+ כיריים חשמלי | B26: =' ד. ציוד כללי'!H25 -> 0 | C26: =' ד. ציוד כללי'!I25 -> 0 | E26: =' ד. ציוד כללי'!L25 -> 0 | F26: =' ד. ציוד כללי'!M25 -> 0 | G26: =IF(F26=0,"",' ד. ציוד כללי'!N25) ->  | H26: =' ד. ציוד כללי'!O25 -> 0
A27: =' ד. ציוד כללי'!C26 -> כלי מטבח- תקציב כללי | B27: =' ד. ציוד כללי'!H26 -> 0 | C27: =' ד. ציוד כללי'!I26 -> 0 | E27: =' ד. ציוד כללי'!L26 -> 0 | F27: =' ד. ציוד כללי'!M26 -> 0 | G27: =IF(F27=0,"",' ד. ציוד כללי'!N26) ->  | H27: =' ד. ציוד כללי'!O26 -> 0
A28: =' ד. ציוד כללי'!C28 -> כספת (מתאימה לאחסון וטעינת טאבלטים) | B28: =' ד. ציוד כללי'!H28 -> 0 | C28: =' ד. ציוד כללי'!I28 -> 0 | E28: =' ד. ציוד כללי'!L28 -> 0 | F28: =' ד. ציוד כללי'!M28 -> 0 | G28: =IF(F28=0,"",' ד. ציוד כללי'!N28) ->  | H28: =' ד. ציוד כללי'!O28 -> 0
A29: =' ד. ציוד כללי'!C29 -> מחשב נייח כולל מערכת הפעלה, אופיס, מסך ומקלדת | B29: =' ד. ציוד כללי'!H29 -> 0 | C29: =' ד. ציוד כללי'!I29 -> 0 | E29: =' ד. ציוד כללי'!L29 -> 0 | F29: =' ד. ציוד כללי'!M29 -> 0 | G29: =IF(F29=0,"",' ד. ציוד כללי'!N29) ->  | H29: =' ד. ציוד כללי'!O29 -> 0
A30: =' ד. ציוד כללי'!C30 -> מחשב נייד כולל מערכת הפעלה, אופיס, מסך ומקלדת | B30: =' ד. ציוד כללי'!H30 -> 0 | C30: =' ד. ציוד כללי'!I30 -> 0 | E30: =' ד. ציוד כללי'!L30 -> 0 | F30: =' ד. ציוד כללי'!M30 -> 0 | G30: =IF(F30=0,"",' ד. ציוד כללי'!N30) ->  | H30: =' ד. ציוד כללי'!O30 -> 0
A31: =' ד. ציוד כללי'!C31 -> מדפסת משולבת | B31: =' ד. ציוד כללי'!H31 -> 0 | C31: =' ד. ציוד כללי'!I31 -> 0 | E31: =' ד. ציוד כללי'!L31 -> 0 | F31: =' ד. ציוד כללי'!M31 -> 0 | G31: =IF(F31=0,"",' ד. ציוד כללי'!N31) ->  | H31: =' ד. ציוד כללי'!O31 -> 0
A32: =' ד. ציוד כללי'!C32 -> ארון אחסון | B32: =' ד. ציוד כללי'!H32 -> 0 | C32: =' ד. ציוד כללי'!I32 -> 0 | E32: =' ד. ציוד כללי'!L32 -> 0 | F32: =' ד. ציוד כללי'!M32 -> 0 | G32: =IF(F32=0,"",' ד. ציוד כללי'!N32) ->  | H32: =' ד. ציוד כללי'!O32 -> 0
A33: =' ד. ציוד כללי'!C33 -> שולחן מחשב | B33: =' ד. ציוד כללי'!H33 -> 0 | C33: =' ד. ציוד כללי'!I33 -> 0 | E33: =' ד. ציוד כללי'!L33 -> 0 | F33: =' ד. ציוד כללי'!M33 -> 0 | G33: =IF(F33=0,"",' ד. ציוד כללי'!N33) ->  | H33: =' ד. ציוד כללי'!O33 -> 0
A34: =' ד. ציוד כללי'!C34 -> מגרסת נייר | B34: =' ד. ציוד כללי'!H34 -> 0 | C34: =' ד. ציוד כללי'!I34 -> 0 | E34: =' ד. ציוד כללי'!L34 -> 0 | F34: =' ד. ציוד כללי'!M34 -> 0 | G34: =IF(F34=0,"",' ד. ציוד כללי'!N34) ->  | H34: =' ד. ציוד כללי'!O34 -> 0
A35: =' ד. ציוד כללי'!C35 -> מחשב טאבלט | B35: =' ד. ציוד כללי'!H35 -> 0 | C35: =' ד. ציוד כללי'!I35 -> 0 | E35: =' ד. ציוד כללי'!L35 -> 0 | F35: =' ד. ציוד כללי'!M35 -> 0 | G35: =IF(F35=0,"",' ד. ציוד כללי'!N35) ->  | H35: =' ד. ציוד כללי'!O35 -> 0
A36: =' ד. ציוד כללי'!C36 -> כסא מחשב | B36: =' ד. ציוד כללי'!H36 -> 0 | C36: =' ד. ציוד כללי'!I36 -> 0 | E36: =' ד. ציוד כללי'!L36 -> 0 | F36: =' ד. ציוד כללי'!M36 -> 0 | G36: =IF(F36=0,"",' ד. ציוד כללי'!N36) ->  | H36: =' ד. ציוד כללי'!O36 -> 0
A37: =' ד. ציוד כללי'!C38 -> טלויזיה 55 אינץ' + מסך הגנה | B37: =' ד. ציוד כללי'!H38 -> 0 | C37: =' ד. ציוד כללי'!I38 -> 0 | E37: =' ד. ציוד כללי'!L38 -> 0 | F37: =' ד. ציוד כללי'!M38 -> 0 | G37: =IF(F37=0,"",' ד. ציוד כללי'!N38) ->  | H37: =' ד. ציוד כללי'!O38 -> 0
A38: =' ד. ציוד כללי'!C39 -> מתקן תליה לטלוויזיה | B38: =' ד. ציוד כללי'!H39 -> 0 | C38: =' ד. ציוד כללי'!I39 -> 0 | E38: =' ד. ציוד כללי'!L39 -> 0 | F38: =' ד. ציוד כללי'!M39 -> 0 | G38: =IF(F38=0,"",' ד. ציוד כללי'!N39) ->  | H38: =' ד. ציוד כללי'!O39 -> 0
A39: =' ד. ציוד כללי'!C40 -> ברקו | B39: =' ד. ציוד כללי'!H40 -> 0 | C39: =' ד. ציוד כללי'!I40 -> 0 | E39: =' ד. ציוד כללי'!L40 -> 0 | F39: =' ד. ציוד כללי'!M40 -> 0 | G39: =IF(F39=0,"",' ד. ציוד כללי'!N40) ->  | H39: =' ד. ציוד כללי'!O40 -> 0
A40: =' ד. ציוד כללי'!C41 -> מצלמה דיגיטלית | B40: =' ד. ציוד כללי'!H41 -> 0 | C40: =' ד. ציוד כללי'!I41 -> 0 | E40: =' ד. ציוד כללי'!L41 -> 0 | F40: =' ד. ציוד כללי'!M41 -> 0 | G40: =IF(F40=0,"",' ד. ציוד כללי'!N41) ->  | H40: =' ד. ציוד כללי'!O41 -> 0
A41: =' ד. ציוד כללי'!C42 -> משחקי חברה (תקציב כולל) | B41: =' ד. ציוד כללי'!H42 -> 0 | C41: =' ד. ציוד כללי'!I42 -> 0 | E41: =' ד. ציוד כללי'!L42 -> 0 | F41: =' ד. ציוד כללי'!M42 -> 0 | G41: =IF(F41=0,"",' ד. ציוד כללי'!N42) ->  | H41: =' ד. ציוד כללי'!O42 -> 0
A42: =' ד. ציוד כללי'!C43 -> קונסולת משחקים | B42: =' ד. ציוד כללי'!H43 -> 0 | C42: =' ד. ציוד כללי'!I43 -> 0 | E42: =' ד. ציוד כללי'!L43 -> 0 | F42: =' ד. ציוד כללי'!M43 -> 0 | G42: =IF(F42=0,"",' ד. ציוד כללי'!N43) ->  | H42: =' ד. ציוד כללי'!O43 -> 0
A43: =' ד. ציוד כללי'!C44 -> מערכת סטריאו | B43: =' ד. ציוד כללי'!H44 -> 0 | C43: =' ד. ציוד כללי'!I44 -> 0 | E43: =' ד. ציוד כללי'!L44 -> 0 | F43: =' ד. ציוד כללי'!M44 -> 0 | G43: =IF(F43=0,"",' ד. ציוד כללי'!N44) ->  | H43: =' ד. ציוד כללי'!O44 -> 0
A44: =' ד. ציוד כללי'!C46 -> סט ריהוט לגינה הכולל שולחן ושישה כסאות | B44: =' ד. ציוד כללי'!H46 -> 0 | C44: =' ד. ציוד כללי'!I46 -> 0 | E44: =' ד. ציוד כללי'!L46 -> 0 | F44: =' ד. ציוד כללי'!M46 -> 0 | G44: =IF(F44=0,"",' ד. ציוד כללי'!N46) ->  | H44: =' ד. ציוד כללי'!O46 -> 0
A45: =' ד. ציוד כללי'!C47 -> סוכך | B45: =' ד. ציוד כללי'!H47 -> 0 | C45: =' ד. ציוד כללי'!I47 -> 0 | E45: =' ד. ציוד כללי'!L47 -> 0 | F45: =' ד. ציוד כללי'!M47 -> 0 | G45: =IF(F45=0,"",' ד. ציוד כללי'!N47) ->  | H45: =' ד. ציוד כללי'!O47 -> 0
A46: =' ד. ציוד כללי'!C48 -> ספסל גינה | B46: =' ד. ציוד כללי'!H48 -> 0 | C46: =' ד. ציוד כללי'!I48 -> 0 | E46: =' ד. ציוד כללי'!L48 -> 0 | F46: =' ד. ציוד כללי'!M48 -> 0 | G46: =IF(F46=0,"",' ד. ציוד כללי'!N48) ->  | H46: =' ד. ציוד כללי'!O48 -> 0
A47: =' ד. ציוד כללי'!C49 -> נדנדה לחצר | B47: =' ד. ציוד כללי'!H49 -> 0 | C47: =' ד. ציוד כללי'!I49 -> 0 | E47: =' ד. ציוד כללי'!L49 -> 0 | F47: =' ד. ציוד כללי'!M49 -> 0 | G47: =IF(F47=0,"",' ד. ציוד כללי'!N49) ->  | H47: =' ד. ציוד כללי'!O49 -> 0
A48: =' ד. ציוד כללי'!C50 -> מחסן גינה | B48: =' ד. ציוד כללי'!H50 -> 0 | C48: =' ד. ציוד כללי'!I50 -> 0 | E48: =' ד. ציוד כללי'!L50 -> 0 | F48: =' ד. ציוד כללי'!M50 -> 0 | G48: =IF(F48=0,"",' ד. ציוד כללי'!N50) ->  | H48: =' ד. ציוד כללי'!O50 -> 0
A49: =' ד. ציוד כללי'!C51 -> פח זבל גינה | B49: =' ד. ציוד כללי'!H51 -> 0 | C49: =' ד. ציוד כללי'!I51 -> 0 | E49: =' ד. ציוד כללי'!L51 -> 0 | F49: =' ד. ציוד כללי'!M51 -> 0 | G49: =IF(F49=0,"",' ד. ציוד כללי'!N51) ->  | H49: =' ד. ציוד כללי'!O51 -> 0
A50: =' ד. ציוד כללי'!C53 -> מטף כיבוי אש 6 ק"ג | B50: =' ד. ציוד כללי'!H53 -> 0 | C50: =' ד. ציוד כללי'!I53 -> 0 | E50: =' ד. ציוד כללי'!L53 -> 0 | F50: =' ד. ציוד כללי'!M53 -> 0 | G50: =IF(F50=0,"",' ד. ציוד כללי'!N53) ->  | H50: =' ד. ציוד כללי'!O53 -> 0
A51: =' ד. ציוד כללי'!C54 -> תיק עזרה ראשונה | B51: =' ד. ציוד כללי'!H54 -> 0 | C51: =' ד. ציוד כללי'!I54 -> 0 | E51: =' ד. ציוד כללי'!L54 -> 0 | F51: =' ד. ציוד כללי'!M54 -> 0 | G51: =IF(F51=0,"",' ד. ציוד כללי'!N54) ->  | H51: =' ד. ציוד כללי'!O54 -> 0
A52: =' ד. ציוד כללי'!C55 -> מערכת מצלמות אבטחה | B52: =' ד. ציוד כללי'!H55 -> 0 | C52: =' ד. ציוד כללי'!I55 -> 0 | E52: =' ד. ציוד כללי'!L55 -> 0 | F52: =' ד. ציוד כללי'!M55 -> 0 | G52: =IF(F52=0,"",' ד. ציוד כללי'!N55) ->  | H52: =' ד. ציוד כללי'!O55 -> 0
A53: =' ד. ציוד כללי'!C56 -> תאורת חירום | B53: =' ד. ציוד כללי'!H56 -> 0 | C53: =' ד. ציוד כללי'!I56 -> 0 | E53: =' ד. ציוד כללי'!L56 -> 0 | F53: =' ד. ציוד כללי'!M56 -> 0 | G53: =IF(F53=0,"",' ד. ציוד כללי'!N56) ->  | H53: =' ד. ציוד כללי'!O56 -> 0
A54: =' ד. ציוד כללי'!C58 -> עיצוב פנים | B54: =' ד. ציוד כללי'!H58 -> 0 | C54: =' ד. ציוד כללי'!I58 -> 0 | E54: =' ד. ציוד כללי'!L58 -> 0 | F54: =' ד. ציוד כללי'!M58 -> 0 | G54: =IF(F54=0,"",' ד. ציוד כללי'!N58) ->  | H54: =' ד. ציוד כללי'!O58 -> 0
A55: סה"כ ציוד כללי כולל מע"מ | C55: =SUM(C9:C54) -> 0 | E55: =A55 -> סה"כ ציוד כללי כולל מע"מ | H55: 0
A56: ='ב. תוכן עניינים'!C18 -> טכנולוגיה מסייעת | E56: =A56 -> טכנולוגיה מסייעת
A57: ='ה. טכנולוגיה מסייעת'!C7 -> שולחנות חשמליים מתכווננים למחשב | B57: ='ה. טכנולוגיה מסייעת'!H7 -> 0 | C57: ='ה. טכנולוגיה מסייעת'!I7 -> 0 | E57: ='ה. טכנולוגיה מסייעת'!L7 -> 0 | F57: ='ה. טכנולוגיה מסייעת'!M7 -> 0 | G57: =IF(F57=0,"",'ה. טכנולוגיה מסייעת'!N7) ->  | H57: ='ה. טכנולוגיה מסייעת'!O7 -> 0
A58: ='ה. טכנולוגיה מסייעת'!C8 -> מקלדת ארגונומית | B58: ='ה. טכנולוגיה מסייעת'!H8 -> 0 | C58: ='ה. טכנולוגיה מסייעת'!I8 -> 0 | E58: ='ה. טכנולוגיה מסייעת'!L8 -> 0 | F58: ='ה. טכנולוגיה מסייעת'!M8 -> 0 | G58: =IF(F58=0,"",'ה. טכנולוגיה מסייעת'!N8) ->  | H58: ='ה. טכנולוגיה מסייעת'!O8 -> 0
A59: ='ה. טכנולוגיה מסייעת'!C9 -> עכבר ארגונומי | B59: ='ה. טכנולוגיה מסייעת'!H9 -> 0 | C59: ='ה. טכנולוגיה מסייעת'!I9 -> 0 | E59: ='ה. טכנולוגיה מסייעת'!L9 -> 0 | F59: ='ה. טכנולוגיה מסייעת'!M9 -> 0 | G59: =IF(F59=0,"",'ה. טכנולוגיה מסייעת'!N9) ->  | H59: ='ה. טכנולוגיה מסייעת'!O9 -> 0
A60: ='ה. טכנולוגיה מסייעת'!C10 -> כסא שירותים מתכוונן | B60: ='ה. טכנולוגיה מסייעת'!H10 -> 0 | C60: ='ה. טכנולוגיה מסייעת'!I10 -> 0 | E60: ='ה. טכנולוגיה מסייעת'!L10 -> 0 | F60: ='ה. טכנולוגיה מסייעת'!M10 -> 0 | G60: =IF(F60=0,"",'ה. טכנולוגיה מסייעת'!N10) ->  | H60: ='ה. טכנולוגיה מסייעת'!O10 -> 0
A61: סה"כ טכנולוגיה מסייעת כולל מע"מ | C61: =SUM(C57:C60) -> 0 | E61: =A61 -> סה"כ טכנולוגיה מסייעת כולל מע"מ | H61: 0 | XEV61: =SUM(B61:XEU61) -> 0
A62: ='ב. תוכן עניינים'!C19 -> מתקני חצר לבוגרים בלבד | E62: =A62 -> מתקני חצר לבוגרים בלבד
A63: ='ו. מתקני חצר לבוגרים '!B8 -> לחיצת חזה משיכה עליונה | B63: ='ו. מתקני חצר לבוגרים '!I8 -> 0 | C63: ='ו. מתקני חצר לבוגרים '!J8 -> 0 | E63: ='ו. מתקני חצר לבוגרים '!M8 -> 0 | F63: ='ו. מתקני חצר לבוגרים '!N8 -> 0 | G63: =IF(F63=0,"",'ו. מתקני חצר לבוגרים '!O8) ->  | H63: ='ו. מתקני חצר לבוגרים '!P8 -> 0
A64: ='ו. מתקני חצר לבוגרים '!B9 -> מתקן דחיקת כתפיים למשתמש | B64: ='ו. מתקני חצר לבוגרים '!I9 -> 0 | C64: ='ו. מתקני חצר לבוגרים '!J9 -> 0 | E64: ='ו. מתקני חצר לבוגרים '!M9 -> 0 | F64: ='ו. מתקני חצר לבוגרים '!N9 -> 0 | G64: =IF(F64=0,"",'ו. מתקני חצר לבוגרים '!O9) ->  | H64: ='ו. מתקני חצר לבוגרים '!P9 -> 0
A65: ='ו. מתקני חצר לבוגרים '!B10 -> מתקן פרפר חזה | B65: ='ו. מתקני חצר לבוגרים '!I10 -> 0 | C65: ='ו. מתקני חצר לבוגרים '!J10 -> 0 | E65: ='ו. מתקני חצר לבוגרים '!M10 -> 0 | F65: ='ו. מתקני חצר לבוגרים '!N10 -> 0 | G65: =IF(F65=0,"",'ו. מתקני חצר לבוגרים '!O10) ->  | H65: ='ו. מתקני חצר לבוגרים '!P10 -> 0
A66: ='ו. מתקני חצר לבוגרים '!B11 -> מתקן פרפר הפוך | B66: ='ו. מתקני חצר לבוגרים '!I11 -> 0 | C66: ='ו. מתקני חצר לבוגרים '!J11 -> 0 | E66: ='ו. מתקני חצר לבוגרים '!M11 -> 0 | F66: ='ו. מתקני חצר לבוגרים '!N11 -> 0 | G66: =IF(F66=0,"",'ו. מתקני חצר לבוגרים '!O11) ->  | H66: ='ו. מתקני חצר לבוגרים '!P11 -> 0
A67: ='ו. מתקני חצר לבוגרים '!B12 -> מתקן מקבילי כנף לזוג משתמשים | B67: ='ו. מתקני חצר לבוגרים '!I12 -> 0 | C67: ='ו. מתקני חצר לבוגרים '!J12 -> 0 | E67: ='ו. מתקני חצר לבוגרים '!M12 -> 0 | F67: ='ו. מתקני חצר לבוגרים '!N12 -> 0 | G67: =IF(F67=0,"",'ו. מתקני חצר לבוגרים '!O12) ->  | H67: ='ו. מתקני חצר לבוגרים '!P12 -> 0
A68: ='ו. מתקני חצר לבוגרים '!B13 -> מתקן דחיקת רגליים לזוג משתמשים | B68: ='ו. מתקני חצר לבוגרים '!I13 -> 0 | C68: ='ו. מתקני חצר לבוגרים '!J13 -> 0 | E68: ='ו. מתקני חצר לבוגרים '!M13 -> 0 | F68: ='ו. מתקני חצר לבוגרים '!N13 -> 0 | G68: =IF(F68=0,"",'ו. מתקני חצר לבוגרים '!O13) ->  | H68: ='ו. מתקני חצר לבוגרים '!P13 -> 0
A69: ='ו. מתקני חצר לבוגרים '!B14 -> מתקן סקי | B69: ='ו. מתקני חצר לבוגרים '!I14 -> 0 | C69: ='ו. מתקני חצר לבוגרים '!J14 -> 0 | E69: ='ו. מתקני חצר לבוגרים '!M14 -> 0 | F69: ='ו. מתקני חצר לבוגרים '!N14 -> 0 | G69: =IF(F69=0,"",'ו. מתקני חצר לבוגרים '!O14) ->  | H69: ='ו. מתקני חצר לבוגרים '!P14 -> 0
A70: ='ו. מתקני חצר לבוגרים '!B15 -> מתקן הליכה באוויר לזוג משתמשים | B70: ='ו. מתקני חצר לבוגרים '!I15 -> 0 | C70: ='ו. מתקני חצר לבוגרים '!J15 -> 0 | E70: ='ו. מתקני חצר לבוגרים '!M15 -> 0 | F70: ='ו. מתקני חצר לבוגרים '!N15 -> 0 | G70: =IF(F70=0,"",'ו. מתקני חצר לבוגרים '!O15) ->  | H70: ='ו. מתקני חצר לבוגרים '!P15 -> 0
A71: ='ו. מתקני חצר לבוגרים '!B16 -> מתקן חתירה בכורסא | B71: ='ו. מתקני חצר לבוגרים '!I16 -> 0 | C71: ='ו. מתקני חצר לבוגרים '!J16 -> 0 | E71: ='ו. מתקני חצר לבוגרים '!M16 -> 0 | F71: ='ו. מתקני חצר לבוגרים '!N16 -> 0 | G71: =IF(F71=0,"",'ו. מתקני חצר לבוגרים '!O16) ->  | H71: ='ו. מתקני חצר לבוגרים '!P16 -> 0
A72: ='ו. מתקני חצר לבוגרים '!B17 -> מתקן מאמן אגן, שרירי בטן, ישבן וירכיים בתנועת מטוטלת | B72: ='ו. מתקני חצר לבוגרים '!I17 -> 0 | C72: ='ו. מתקני חצר לבוגרים '!J17 -> 0 | E72: ='ו. מתקני חצר לבוגרים '!M17 -> 0 | F72: ='ו. מתקני חצר לבוגרים '!N17 -> 0 | G72: =IF(F72=0,"",'ו. מתקני חצר לבוגרים '!O17) ->  | H72: ='ו. מתקני חצר לבוגרים '!P17 -> 0
A73: ='ו. מתקני חצר לבוגרים '!B18 -> מתקן אופני ידיים רגליים | B73: ='ו. מתקני חצר לבוגרים '!I18 -> 0 | C73: ='ו. מתקני חצר לבוגרים '!J18 -> 0 | E73: ='ו. מתקני חצר לבוגרים '!M18 -> 0 | F73: ='ו. מתקני חצר לבוגרים '!N18 -> 0 | G73: =IF(F73=0,"",'ו. מתקני חצר לבוגרים '!O18) ->  | H73: ='ו. מתקני חצר לבוגרים '!P18 -> 0
A74: ='ו. מתקני חצר לבוגרים '!B19 -> מתקן אימון פולי תחתון בתמיכת חזה | B74: ='ו. מתקני חצר לבוגרים '!I19 -> 0 | C74: ='ו. מתקני חצר לבוגרים '!J19 -> 0 | E74: ='ו. מתקני חצר לבוגרים '!M19 -> 0 | F74: ='ו. מתקני חצר לבוגרים '!N19 -> 0 | G74: =IF(F74=0,"",'ו. מתקני חצר לבוגרים '!O19) ->  | H74: ='ו. מתקני חצר לבוגרים '!P19 -> 0
A75: ='ו. מתקני חצר לבוגרים '!B20 -> מתקן אופני ספיננג | B75: ='ו. מתקני חצר לבוגרים '!I20 -> 0 | C75: ='ו. מתקני חצר לבוגרים '!J20 -> 0 | E75: ='ו. מתקני חצר לבוגרים '!M20 -> 0 | F75: ='ו. מתקני חצר לבוגרים '!N20 -> 0 | G75: =IF(F75=0,"",'ו. מתקני חצר לבוגרים '!O20) ->  | H75: ='ו. מתקני חצר לבוגרים '!P20 -> 0
A76: ='ו. מתקני חצר לבוגרים '!B21 -> מתקן דחיקת רגליים ארבע | B76: ='ו. מתקני חצר לבוגרים '!I21 -> 0 | C76: ='ו. מתקני חצר לבוגרים '!J21 -> 0 | E76: ='ו. מתקני חצר לבוגרים '!M21 -> 0 | F76: ='ו. מתקני חצר לבוגרים '!N21 -> 0 | G76: =IF(F76=0,"",'ו. מתקני חצר לבוגרים '!O21) ->  | H76: ='ו. מתקני חצר לבוגרים '!P21 -> 0
A77: ='ו. מתקני חצר לבוגרים '!B22 -> מתקן מתח –מקבילים וכורסת בטן | B77: ='ו. מתקני חצר לבוגרים '!I22 -> 0 | C77: ='ו. מתקני חצר לבוגרים '!J22 -> 0 | E77: ='ו. מתקני חצר לבוגרים '!M22 -> 0 | F77: ='ו. מתקני חצר לבוגרים '!N22 -> 0 | G77: =IF(F77=0,"",'ו. מתקני חצר לבוגרים '!O22) ->  | H77: ='ו. מתקני חצר לבוגרים '!P22 -> 0
A78: ='ו. מתקני חצר לבוגרים '!C25 -> נדנדה קן לציפור | B78: ='ו. מתקני חצר לבוגרים '!I25 -> 0 | C78: ='ו. מתקני חצר לבוגרים '!J25 -> 0 | E78: ='ו. מתקני חצר לבוגרים '!M25 -> 0 | F78: ='ו. מתקני חצר לבוגרים '!N25 -> 0 | G78: =IF(F78=0,"",'ו. מתקני חצר לבוגרים '!O25) ->  | H78: ='ו. מתקני חצר לבוגרים '!P25 -> 0
A79: ='ו. מתקני חצר לבוגרים '!C26 -> מתקן נדנדות כפול | B79: ='ו. מתקני חצר לבוגרים '!I26 -> 0 | C79: ='ו. מתקני חצר לבוגרים '!J26 -> 0 | E79: ='ו. מתקני חצר לבוגרים '!M26 -> 0 | F79: ='ו. מתקני חצר לבוגרים '!N26 -> 0 | G79: =IF(F79=0,"",'ו. מתקני חצר לבוגרים '!O26) ->  | H79: ='ו. מתקני חצר לבוגרים '!P26 -> 0
A80: ='ו. מתקני חצר לבוגרים '!C27 -> מתקן משולב | B80: ='ו. מתקני חצר לבוגרים '!I27 -> 0 | C80: ='ו. מתקני חצר לבוגרים '!J27 -> 0 | E80: ='ו. מתקני חצר לבוגרים '!M27 -> 0 | F80: ='ו. מתקני חצר לבוגרים '!N27 -> 0 | G80: =IF(F80=0,"",'ו. מתקני חצר לבוגרים '!O27) ->  | H80: ='ו. מתקני חצר לבוגרים '!P27 -> 0
A81: ='ו. מתקני חצר לבוגרים '!C28 -> מתקן קפיץ | B81: ='ו. מתקני חצר לבוגרים '!I28 -> 0 | C81: ='ו. מתקני חצר לבוגרים '!J28 -> 0 | E81: ='ו. מתקני חצר לבוגרים '!M28 -> 0 | F81: ='ו. מתקני חצר לבוגרים '!N28 -> 0 | G81: =IF(F81=0,"",'ו. מתקני חצר לבוגרים '!O28) ->  | H81: ='ו. מתקני חצר לבוגרים '!P28 -> 0
A82: ='ו. מתקני חצר לבוגרים '!C29 -> דחיקת רגלים | B82: ='ו. מתקני חצר לבוגרים '!I29 -> 0 | C82: ='ו. מתקני חצר לבוגרים '!J29 -> 0 | E82: ='ו. מתקני חצר לבוגרים '!M29 -> 0 | F82: ='ו. מתקני חצר לבוגרים '!N29 -> 0 | G82: =IF(F82=0,"",'ו. מתקני חצר לבוגרים '!O29) ->  | H82: ='ו. מתקני חצר לבוגרים '!P29 -> 0
A83: ='ו. מתקני חצר לבוגרים '!C30 -> חתירה | B83: ='ו. מתקני חצר לבוגרים '!I30 -> 0 | C83: ='ו. מתקני חצר לבוגרים '!J30 -> 0 | E83: ='ו. מתקני חצר לבוגרים '!M30 -> 0 | F83: ='ו. מתקני חצר לבוגרים '!N30 -> 0 | G83: =IF(F83=0,"",'ו. מתקני חצר לבוגרים '!O30) ->  | H83: ='ו. מתקני חצר לבוגרים '!P30 -> 0
A84: ='ו. מתקני חצר לבוגרים '!C31 -> אופנים עם מושב | B84: ='ו. מתקני חצר לבוגרים '!I31 -> 0 | C84: ='ו. מתקני חצר לבוגרים '!J31 -> 0 | E84: ='ו. מתקני חצר לבוגרים '!M31 -> 0 | F84: ='ו. מתקני חצר לבוגרים '!N31 -> 0 | G84: =IF(F84=0,"",'ו. מתקני חצר לבוגרים '!O31) ->  | H84: ='ו. מתקני חצר לבוגרים '!P31 -> 0
A85: ='ו. מתקני חצר לבוגרים '!C32 -> דחיקת ידים | B85: ='ו. מתקני חצר לבוגרים '!I32 -> 0 | C85: ='ו. מתקני חצר לבוגרים '!J32 -> 0 | E85: ='ו. מתקני חצר לבוגרים '!M32 -> 0 | F85: ='ו. מתקני חצר לבוגרים '!N32 -> 0 | G85: =IF(F85=0,"",'ו. מתקני חצר לבוגרים '!O32) ->  | H85: ='ו. מתקני חצר לבוגרים '!P32 -> 0
A86: ='ו. מתקני חצר לבוגרים '!C33 -> נדנדת מושב | B86: ='ו. מתקני חצר לבוגרים '!I33 -> 0 | C86: ='ו. מתקני חצר לבוגרים '!J33 -> 0 | E86: ='ו. מתקני חצר לבוגרים '!M33 -> 0 | F86: ='ו. מתקני חצר לבוגרים '!N33 -> 0 | G86: =IF(F86=0,"",'ו. מתקני חצר לבוגרים '!O33) ->  | H86: ='ו. מתקני חצר לבוגרים '!P33 -> 0
A87: ='ו. מתקני חצר לבוגרים '!C34 -> שולחן פינג פונג | B87: ='ו. מתקני חצר לבוגרים '!I34 -> 0 | C87: ='ו. מתקני חצר לבוגרים '!J34 -> 0 | E87: ='ו. מתקני חצר לבוגרים '!M34 -> 0 | F87: ='ו. מתקני חצר לבוגרים '!N34 -> 0 | G87: =IF(F87=0,"",'ו. מתקני חצר לבוגרים '!O34) ->  | H87: ='ו. מתקני חצר לבוגרים '!P34 -> 0
A88: ='ו. מתקני חצר לבוגרים '!C35 -> הוקי | B88: ='ו. מתקני חצר לבוגרים '!I35 -> 0 | C88: ='ו. מתקני חצר לבוגרים '!J35 -> 0 | E88: ='ו. מתקני חצר לבוגרים '!M35 -> 0 | F88: ='ו. מתקני חצר לבוגרים '!N35 -> 0 | G88: =IF(F88=0,"",'ו. מתקני חצר לבוגרים '!O35) ->  | H88: ='ו. מתקני חצר לבוגרים '!P35 -> 0
A89: ='ו. מתקני חצר לבוגרים '!C36 -> כדורגל שולחן | B89: ='ו. מתקני חצר לבוגרים '!I36 -> 0 | C89: ='ו. מתקני חצר לבוגרים '!J36 -> 0 | E89: ='ו. מתקני חצר לבוגרים '!M36 -> 0 | F89: ='ו. מתקני חצר לבוגרים '!N36 -> 0 | G89: =IF(F89=0,"",'ו. מתקני חצר לבוגרים '!O36) ->  | H89: ='ו. מתקני חצר לבוגרים '!P36 -> 0
A90: ='ו. מתקני חצר לבוגרים '!C37 -> משטח גומי עלות למ"ר 1 | B90: ='ו. מתקני חצר לבוגרים '!I37 -> 0 | C90: ='ו. מתקני חצר לבוגרים '!J37 -> 0 | E90: ='ו. מתקני חצר לבוגרים '!M37 -> 0 | F90: ='ו. מתקני חצר לבוגרים '!N37 -> 0 | G90: =IF(F90=0,"",'ו. מתקני חצר לבוגרים '!O37) ->  | H90: ='ו. מתקני חצר לבוגרים '!P37 -> 0
A91: סה"כ מתקני חצר כולל מע"מ | C91: =SUM(C63:C90) -> 0 | E91: =A91 -> סה"כ מתקני חצר כולל מע"מ | H91: 0
A92: ='ב. תוכן עניינים'!C20 -> חוגים | E92: =A92 -> חוגים
A93: ='ז. חוגים'!C8 -> מחשב נייח כולל מקלדת ועכבר | B93: ='ז. חוגים'!H8 -> 0 | C93: ='ז. חוגים'!I8 -> 0 | E93: ='ז. חוגים'!L8 -> 0 | F93: ='ז. חוגים'!M8 -> 0 | G93: =IF(F93=0,"",'ז. חוגים'!N8) ->  | H93: ='ז. חוגים'!O8 -> 0
A94: ='ז. חוגים'!C9 -> שולחן מחשב | B94: ='ז. חוגים'!H9 -> 0 | C94: ='ז. חוגים'!I9 -> 0 | E94: ='ז. חוגים'!L9 -> 0 | F94: ='ז. חוגים'!M9 -> 0 | G94: =IF(F94=0,"",'ז. חוגים'!N9) ->  | H94: ='ז. חוגים'!O9 -> 0
A95: ='ז. חוגים'!C10 -> כסא | B95: ='ז. חוגים'!H10 -> 0 | C95: ='ז. חוגים'!I10 -> 0 | E95: ='ז. חוגים'!L10 -> 0 | F95: ='ז. חוגים'!M10 -> 0 | G95: =IF(F95=0,"",'ז. חוגים'!N10) ->  | H95: ='ז. חוגים'!O10 -> 0
A96: ='ז. חוגים'!C12 -> קרמיקה כולל תנור וציוד נילווה (רכישת התנור מותנת בקיום חדר נפרד לתנור 5 מ"ר- 7 מ"ר תנור קרמיקה תוצרת חו"ל דורש תו תקן מת"י) | B96: ='ז. חוגים'!H12 -> 0 | C96: ='ז. חוגים'!I12 -> 0 | E96: ='ז. חוגים'!L12 -> 0 | F96: ='ז. חוגים'!M12 -> 0 | G96: =IF(F96=0,"",'ז. חוגים'!N12) ->  | H96: ='ז. חוגים'!O12 -> 0
A97: ='ז. חוגים'!C13 -> מוזיקה | B97: ='ז. חוגים'!H13 -> 0 | C97: ='ז. חוגים'!I13 -> 0 | E97: ='ז. חוגים'!L13 -> 0 | F97: ='ז. חוגים'!M13 -> 0 | G97: =IF(F97=0,"",'ז. חוגים'!N13) ->  | H97: ='ז. חוגים'!O13 -> 0
A98: ='ז. חוגים'!C14 -> בישול | B98: ='ז. חוגים'!H14 -> 0 | C98: ='ז. חוגים'!I14 -> 0 | E98: ='ז. חוגים'!L14 -> 0 | F98: ='ז. חוגים'!M14 -> 0 | G98: =IF(F98=0,"",'ז. חוגים'!N14) ->  | H98: ='ז. חוגים'!O14 -> 0
A99: ='ז. חוגים'!C15 -> ציוד לפעילות גופנית קלה | B99: ='ז. חוגים'!H15 -> 0 | C99: ='ז. חוגים'!I15 -> 0 | E99: ='ז. חוגים'!L15 -> 0 | F99: ='ז. חוגים'!M15 -> 0 | G99: =IF(F99=0,"",'ז. חוגים'!N15) ->  | H99: ='ז. חוגים'!O15 -> 0
A100: ='ז. חוגים'!C16 -> חוג עיצוב וייצור מוצרים: מדפסת תלת מימד (נדרש מדריך בעל ידע וניסיון בהפעלת המדפסת) | B100: ='ז. חוגים'!H16 -> 0 | C100: ='ז. חוגים'!I16 -> 0 | E100: ='ז. חוגים'!L16 -> 0 | F100: ='ז. חוגים'!M16 -> 0 | G100: =IF(F100=0,"",'ז. חוגים'!N16) ->  | H100: ='ז. חוגים'!O16 -> 0
A101: ='ז. חוגים'!C17 -> חוגים נוספים (יש לפרט את החוג ואת הציוד המבוקש עבורו ) | B101: ='ז. חוגים'!H17 -> 0 | C101: ='ז. חוגים'!I17 -> 0 | E101: ='ז. חוגים'!L17 -> 0 | F101: ='ז. חוגים'!M17 -> 0 | G101: =IF(F101=0,"",'ז. חוגים'!N17) ->  | H101: ='ז. חוגים'!O17 -> 0
A102: סה"כ חוגים כולל מע"מ | C102: =SUM(C93:C101) -> 0 | E102: =A102 -> סה"כ חוגים כולל מע"מ | H102: 0
A103: ='ב. תוכן עניינים'!C21 -> ציוד נוסף | E103: =A103 -> ציוד נוסף
A104: ='ח. ציוד נוסף '!B8 -> 0 | B104: ='ח. ציוד נוסף '!D8 -> 0 | C104: ='ח. ציוד נוסף '!M8 -> 0 | E104: ='ח. ציוד נוסף '!O8 -> 0 | F104: ='ח. ציוד נוסף '!P8 -> 0 | G104: =IF(F104=0,"",'ח. ציוד נוסף '!Q8) ->  | H104: ='ח. ציוד נוסף '!R8 -> 0
A105: ='ח. ציוד נוסף '!B9 -> 0 | B105: ='ח. ציוד נוסף '!D9 -> 0 | C105: ='ח. ציוד נוסף '!M9 -> 0 | E105: ='ח. ציוד נוסף '!O9 -> 0 | F105: ='ח. ציוד נוסף '!P9 -> 0 | G105: =IF(F105=0,"",'ח. ציוד נוסף '!Q9) ->  | H105: ='ח. ציוד נוסף '!R9 -> 0
A106: ='ח. ציוד נוסף '!B10 -> 0 | B106: ='ח. ציוד נוסף '!D10 -> 0 | C106: ='ח. ציוד נוסף '!M10 -> 0 | E106: ='ח. ציוד נוסף '!O10 -> 0 | F106: ='ח. ציוד נוסף '!P10 -> 0 | G106: =IF(F106=0,"",'ח. ציוד נוסף '!Q10) ->  | H106: ='ח. ציוד נוסף '!R10 -> 0
A107: ='ח. ציוד נוסף '!B11 -> 0 | B107: ='ח. ציוד נוסף '!D11 -> 0 | C107: ='ח. ציוד נוסף '!M11 -> 0 | E107: ='ח. ציוד נוסף '!O11 -> 0 | F107: ='ח. ציוד נוסף '!P11 -> 0 | G107: =IF(F107=0,"",'ח. ציוד נוסף '!Q11) ->  | H107: ='ח. ציוד נוסף '!R11 -> 0
A108: ='ח. ציוד נוסף '!B12 -> 0 | B108: ='ח. ציוד נוסף '!D12 -> 0 | C108: ='ח. ציוד נוסף '!M12 -> 0 | E108: ='ח. ציוד נוסף '!O12 -> 0 | F108: ='ח. ציוד נוסף '!P12 -> 0 | G108: =IF(F108=0,"",'ח. ציוד נוסף '!Q12) ->  | H108: ='ח. ציוד נוסף '!R12 -> 0
A109: ='ח. ציוד נוסף '!B13 -> 0 | B109: ='ח. ציוד נוסף '!D13 -> 0 | C109: ='ח. ציוד נוסף '!M13 -> 0 | E109: ='ח. ציוד נוסף '!O13 -> 0 | F109: ='ח. ציוד נוסף '!P13 -> 0 | G109: =IF(F109=0,"",'ח. ציוד נוסף '!Q13) ->  | H109: ='ח. ציוד נוסף '!R13 -> 0
A110: ='ח. ציוד נוסף '!B14 -> 0 | B110: ='ח. ציוד נוסף '!D14 -> 0 | C110: ='ח. ציוד נוסף '!M14 -> 0 | E110: ='ח. ציוד נוסף '!O14 -> 0 | F110: ='ח. ציוד נוסף '!P14 -> 0 | G110: =IF(F110=0,"",'ח. ציוד נוסף '!Q14) ->  | H110: ='ח. ציוד נוסף '!R14 -> 0
A111: ='ח. ציוד נוסף '!B15 -> 0 | B111: ='ח. ציוד נוסף '!D15 -> 0 | C111: ='ח. ציוד נוסף '!M15 -> 0 | E111: ='ח. ציוד נוסף '!O15 -> 0 | F111: ='ח. ציוד נוסף '!P15 -> 0 | G111: =IF(F111=0,"",'ח. ציוד נוסף '!Q15) ->  | H111: ='ח. ציוד נוסף '!R15 -> 0
A112: ='ח. ציוד נוסף '!B16 -> 0 | B112: ='ח. ציוד נוסף '!D16 -> 0 | C112: ='ח. ציוד נוסף '!M16 -> 0 | E112: ='ח. ציוד נוסף '!O16 -> 0 | F112: ='ח. ציוד נוסף '!P16 -> 0 | G112: =IF(F112=0,"",'ח. ציוד נוסף '!Q16) ->  | H112: ='ח. ציוד נוסף '!R16 -> 0
A113: ='ח. ציוד נוסף '!B17 -> 0 | B113: ='ח. ציוד נוסף '!D17 -> 0 | C113: ='ח. ציוד נוסף '!M17 -> 0 | E113: ='ח. ציוד נוסף '!O17 -> 0 | F113: ='ח. ציוד נוסף '!P17 -> 0 | G113: =IF(F113=0,"",'ח. ציוד נוסף '!Q17) ->  | H113: ='ח. ציוד נוסף '!R17 -> 0
A114: ='ח. ציוד נוסף '!B18 -> 0 | B114: ='ח. ציוד נוסף '!D18 -> 0 | C114: ='ח. ציוד נוסף '!M18 -> 0 | E114: ='ח. ציוד נוסף '!O18 -> 0 | F114: ='ח. ציוד נוסף '!P18 -> 0 | G114: =IF(F114=0,"",'ח. ציוד נוסף '!Q18) ->  | H114: ='ח. ציוד נוסף '!R18 -> 0
A115: ='ח. ציוד נוסף '!B19 -> 0 | B115: ='ח. ציוד נוסף '!D19 -> 0 | C115: ='ח. ציוד נוסף '!M19 -> 0 | E115: ='ח. ציוד נוסף '!O19 -> 0 | F115: ='ח. ציוד נוסף '!P19 -> 0 | G115: =IF(F115=0,"",'ח. ציוד נוסף '!Q19) ->  | H115: ='ח. ציוד נוסף '!R19 -> 0
A116: ='ח. ציוד נוסף '!B20 -> 0 | B116: ='ח. ציוד נוסף '!D20 -> 0 | C116: ='ח. ציוד נוסף '!M20 -> 0 | E116: ='ח. ציוד נוסף '!O20 -> 0 | F116: ='ח. ציוד נוסף '!P20 -> 0 | G116: =IF(F116=0,"",'ח. ציוד נוסף '!Q20) ->  | H116: ='ח. ציוד נוסף '!R20 -> 0
A117: ='ח. ציוד נוסף '!B21 -> 0 | B117: ='ח. ציוד נוסף '!D21 -> 0 | C117: ='ח. ציוד נוסף '!M21 -> 0 | E117: ='ח. ציוד נוסף '!O21 -> 0 | F117: ='ח. ציוד נוסף '!P21 -> 0 | G117: =IF(F117=0,"",'ח. ציוד נוסף '!Q21) ->  | H117: ='ח. ציוד נוסף '!R21 -> 0
A118: ='ח. ציוד נוסף '!B22 -> 0 | B118: ='ח. ציוד נוסף '!D22 -> 0 | C118: ='ח. ציוד נוסף '!M22 -> 0 | E118: ='ח. ציוד נוסף '!O22 -> 0 | F118: ='ח. ציוד נוסף '!P22 -> 0 | G118: =IF(F118=0,"",'ח. ציוד נוסף '!Q22) ->  | H118: ='ח. ציוד נוסף '!R22 -> 0
A119: ='ח. ציוד נוסף '!B23 -> 0 | B119: ='ח. ציוד נוסף '!D23 -> 0 | C119: ='ח. ציוד נוסף '!M23 -> 0 | E119: ='ח. ציוד נוסף '!O23 -> 0 | F119: ='ח. ציוד נוסף '!P23 -> 0 | G119: =IF(F119=0,"",'ח. ציוד נוסף '!Q23) ->  | H119: ='ח. ציוד נוסף '!R23 -> 0
A120: ='ח. ציוד נוסף '!B24 -> 0 | B120: ='ח. ציוד נוסף '!D24 -> 0 | C120: ='ח. ציוד נוסף '!M24 -> 0 | E120: ='ח. ציוד נוסף '!O24 -> 0 | F120: ='ח. ציוד נוסף '!P24 -> 0 | G120: =IF(F120=0,"",'ח. ציוד נוסף '!Q24) ->  | H120: ='ח. ציוד נוסף '!R24 -> 0
A121: ='ח. ציוד נוסף '!B25 -> 0 | B121: ='ח. ציוד נוסף '!D25 -> 0 | C121: ='ח. ציוד נוסף '!M25 -> 0 | E121: ='ח. ציוד נוסף '!O25 -> 0 | F121: ='ח. ציוד נוסף '!P25 -> 0 | G121: =IF(F121=0,"",'ח. ציוד נוסף '!Q25) ->  | H121: ='ח. ציוד נוסף '!R25 -> 0
A122: ='ח. ציוד נוסף '!B26 -> 0 | B122: ='ח. ציוד נוסף '!D26 -> 0 | C122: ='ח. ציוד נוסף '!M26 -> 0 | E122: ='ח. ציוד נוסף '!O26 -> 0 | F122: ='ח. ציוד נוסף '!P26 -> 0 | G122: =IF(F122=0,"",'ח. ציוד נוסף '!Q26) ->  | H122: ='ח. ציוד נוסף '!R26 -> 0
A123: ='ח. ציוד נוסף '!B27 -> 0 | B123: ='ח. ציוד נוסף '!D27 -> 0 | C123: ='ח. ציוד נוסף '!M27 -> 0 | E123: ='ח. ציוד נוסף '!O27 -> 0 | F123: ='ח. ציוד נוסף '!P27 -> 0 | G123: =IF(F123=0,"",'ח. ציוד נוסף '!Q27) ->  | H123: ='ח. ציוד נוסף '!R27 -> 0
A124: ='ח. ציוד נוסף '!B28 -> 0 | B124: ='ח. ציוד נוסף '!D28 -> 0 | C124: ='ח. ציוד נוסף '!M28 -> 0 | E124: ='ח. ציוד נוסף '!O28 -> 0 | F124: ='ח. ציוד נוסף '!P28 -> 0 | G124: =IF(F124=0,"",'ח. ציוד נוסף '!Q28) ->  | H124: ='ח. ציוד נוסף '!R28 -> 0
A125: סה"כ ציוד אחר כולל מע"מ | C125: =SUM(C104:C124) -> 0 | E125: =A125 -> סה"כ ציוד אחר כולל מע"מ | H125: 0
A126: סה"כ בקשה כולל מע"מ | C126: =C55+C61+C91+C102+C125 -> 0 | E126: =A126 -> סה"כ בקשה כולל מע"מ | H126: =H55+H61+H91+H102+H125 -> 0
